bitfinex/quotes_ETHUSD_20251006
["timestamp","ask_amount","ask_price","bid_price","bid_amount"]
[1759757530206,3.1424,4591.2,4591.1,0.001]
[1759757530507,3.5969,4591.2,4591.1,0.001]
[1759757530912,1.1969,4591.2,4591.1,0.001]
[1759757532710,3.6999,4591.2,4591.1,0.001]
[1759757533019,3.6999,4591.2,4586.3,0.002]
[1759757533020,2.9266,4590.8,4587.6,0.4656]
[1759757533192,3.0336,4589.2,4587.6,0.4656]
[1759757533515,3.0336,4589.0,4587.6,0.4656]
[1759757534575,2.4,4589.0,4587.6,0.4656]
[1759757534819,0.6336,4588.9,4587.6,0.4656]
[1759757535001,3.0336,4588.4,4586.7,0.4656]
[1759757535306,3.0336,4588.2,4586.7,0.4656]
[1759757535811,0.6336,4588.0,4586.7,0.4656]
[1759757536009,2.4,4587.8,4586.7,0.4656]
[1759757537220,0.43490964,4589.8,4586.7,0.4656]
[1759757537221,0.4545,4589.9,4586.7,0.4656]
[1759757537433,2.504,4589.8,4586.7,0.4656]
[1759757537710,2.4,4589.6,4586.7,0.4656]
[1759757537914,2.4,4589.4,4586.7,0.4656]
[1759757538119,0.6336,4589.3,4586.7,0.4656]
[1759757538324,0.6336,4589.1,4587.6,0.001]
[1759757538537,0.4545,4589.7,4587.7,0.4656]
[1759757538705,2.4,4589.5,4587.7,0.4656]
[1759757538904,2.4,4588.8,4587.6,0.001]
[1759757539135,13.91939763,4588.3,4587.6,0.001]
[1759757539331,2.4,4588.2,4587.6,0.001]
[1759757539494,2.4,4588.0,4587.6,0.001]
[1759757539694,0.002,4593.4,4587.7,0.4656]
[1759757539919,0.4565,4592.4,4587.7,15.19877275]
[1759757540226,2.504,4592.3,4588.0,0.6336]
[1759757540425,2.4,4592.2,4588.2,3.0336]
[1759757540638,2.504,4592.3,4588.5,0.6336]
[1759757540841,2.4,4592.2,4588.7,3.0336]
[1759757541025,0.6336,4592.1,4588.8,20.922073]
[1759757541226,0.6336,4592.2,4588.9,22.09297081]
[1759757541428,3.0336,4592.2,4589.0,18.916479]
[1759757541612,0.002,4592.4,4589.2,0.6336]
[1759757541812,0.002,4592.4,4589.1,19.924479]
[1759757541813,0.002,4592.4,4589.3,19.338879]
[1759757542034,0.002,4592.4,4589.2,19.926469]
[1759757542220,0.002,4592.4,4589.3,21.38968536]
[1759757542423,0.002,4592.4,4589.4,2.504]
[1759757542628,0.002,4592.4,4589.5,4.59958]
[1759757542846,0.002,4592.4,4589.5,5.06518]
[1759757543141,0.002,4592.4,4589.6,0.4656]
[1759757543441,0.002,4592.4,4590.6,0.1088]
[1759757543442,0.1088,4591.2,4590.6,0.1088]
[1759757543647,0.1088,4591.2,4590.7,0.4656]
[1759757545439,0.002,4592.4,4590.7,0.4656]
[1759757546523,0.002,4592.4,4590.7,1.3476]
[1759757547010,0.002,4592.4,4590.8,1.0992]
[1759757547217,0.002,4592.4,4590.9,0.25428946]
[1759757547441,0.002,4592.4,4590.9,0.71988946]
[1759757547627,0.002,4592.4,4590.9,0.4656]
[1759757548034,0.002,4592.4,4591.0,0.4656]
[1759757550939,3.0356,4592.4,4591.0,0.4656]
[1759757552045,0.002,4592.4,4591.0,0.4656]
[1759757555551,0.1088,4591.8,4591.1,0.1088]
[1759757555755,0.1088,4591.8,4591.2,0.4511]
[1759757556145,0.002,4592.4,4591.2,0.4511]
[1759757558335,0.002,4592.4,4590.7,0.4486]
[1759757558633,2.402,4592.4,4590.7,0.4486]
[1759757558836,1.0676,4592.3,4590.7,0.4486]
[1759757559155,1.0676,4592.3,4590.2,0.4486]
[1759757559457,1.0676,4592.3,4589.7,0.4486]
[1759757560955,0.6336,4591.5,4589.1,0.4496]
[1759757561137,3.0336,4591.3,4589.1,0.4496]
[1759757561854,0.6336,4591.1,4589.1,0.4496]
[1759757562043,0.6336,4590.9,4589.1,0.4496]
[1759757562234,0.6336,4590.7,4589.1,0.001]
[1759757562435,3.0336,4590.7,4589.1,0.001]
[1759757562636,0.6336,4590.5,4589.1,0.001]
[1759757562862,3.0328,4590.3,4589.1,0.001]
[1759757563058,0.6328,4590.3,4589.1,0.001]
[1759757563540,0.434,4590.2,4589.1,0.001]
[1759757564949,0.6336,4590.1,4589.1,0.001]
[1759757565345,0.6336,4589.9,4589.1,0.001]
[1759757566059,0.7424,4589.2,4589.1,0.001]
[1759757566240,5.6414,4589.2,4589.1,0.001]
[1759757569537,2.5088,4589.2,4589.1,0.001]
[1759757569733,5.0078,4589.2,4589.1,0.001]
[1759757570372,7.18682902,4589.2,4589.1,0.001]
[1759757570669,7.18582902,4589.2,4589.1,0.001]
[1759757570876,7.81942902,4589.2,4589.1,0.001]
[1759757571043,7.71062902,4589.2,4589.1,0.001]
[1759757572543,7.07702902,4589.2,4589.1,0.001]
[1759757572946,2.17902902,4589.2,4589.1,0.4496]
[1759757573348,2.498,4589.8,4589.1,0.4496]
[1759757573553,2.4,4589.7,4589.1,0.4496]
[1759757573750,0.434,4591.5,4589.1,0.4496]
[1759757574044,0.375,4591.4,4589.1,0.4496]
[1759757574373,2.17902902,4589.2,4589.1,0.4496]
[1759757574560,2.17894032,4589.4,4589.1,0.4496]
[1759757574743,2.17896079,4589.4,4589.1,0.001]
[1759757574945,2.5,4589.5,4589.1,0.001]
[1759757575369,2.17902902,4589.2,4589.1,0.001]
[1759757575778,5.64662902,4589.2,4589.1,0.001]
[1759757575979,5.21262902,4589.2,4589.1,0.001]
[1759757576178,5.64662902,4589.2,4589.1,0.001]
[1759757577084,0.6336,4588.6,4588.1,1e-08]
[1759757577286,0.6336,4588.2,4588.1,1e-08]
[1759757577481,5.21310394,4588.2,4588.1,1e-08]
[1759757578162,7.71310394,4588.2,4588.1,1e-08]
[1759757579096,4.57950394,4588.2,4588.1,1e-08]
[1759757579281,2.17950394,4588.2,4588.1,0.44860001]
[1759757579464,7.07850394,4588.2,4588.1,0.44860001]
[1759757579668,7.07850394,4588.2,4588.1,1e-08]
[1759757580262,4.57950394,4588.2,4588.1,1e-08]
[1759757580574,2.17940006,4588.5,4588.1,0.44860001]
[1759757580889,2.17936563,4588.5,4588.1,0.44860001]
[1759757581059,2.17936563,4588.5,4588.2,0.4486]
[1759757581060,2.17940894,4588.4,4588.2,0.4486]
[1759757581260,2.17940894,4588.4,4588.3,0.4486]
[1759757581461,4.68830394,4588.2,4588.1,1e-08]
[1759757581660,5.32190394,4588.2,4588.1,1e-08]
[1759757581891,5.21310394,4588.2,4588.1,1e-08]
[1759757582863,8.15010394,4588.2,4588.1,1e-08]
[1759757584007,2.18026424,4586.6,4586.5,1e-08]
[1759757584301,7.08326424,4586.6,4586.5,1e-08]
[1759757585112,7.08326424,4586.6,4586.5,0.44760001]
[1759757586186,4.58026424,4586.6,4586.5,1e-08]
[1759757586705,5.21386424,4586.6,4586.5,1e-08]
[1759757587215,19.59076187,4586.6,4586.5,1e-08]
[1759757587374,19.59076187,4586.6,4586.0,0.001]
[1759757587375,7.50710195,4586.1,4586.0,0.001]
[1759757587706,6.87381133,4585.5,4582.3,0.4476]
[1759757588017,2.18226256,4582.4,4582.3,0.4476]
[1759757588299,13.91939763,4584.1,4582.3,0.4476]
[1759757588300,2.18156752,4583.9,4582.3,0.4476]
[1759757588487,2.4,4583.8,4582.4,2.18225288]
[1759757588696,2.4,4583.8,4582.5,0.26298529]
[1759757588909,2.18175361,4583.5,4582.5,0.71058529]
[1759757589075,2.503,4583.6,4582.6,0.4476]
[1759757589797,2.18182272,4583.4,4582.6,0.4476]
[1759757589996,2.18206834,4582.9,4582.6,0.4476]
[1759757590197,2.18208705,4582.8,4582.7,0.4476]
[1759757590402,2.503,4583.2,4582.7,0.4476]
[1759757590733,2.18102508,4585.0,4583.0,2.18195834]
[1759757590893,2.18133527,4584.4,4583.1,0.66579583]
[1759757591094,2.4,4584.2,4583.2,0.4476]
[1759757591322,2.18160464,4583.8,4583.2,0.4476]
[1759757591526,2.503,4584.2,4583.2,0.4476]
[1759757591824,0.1088,4583.9,4583.3,0.1088]
[1759757592129,0.1088,4583.9,4583.2,0.4476]
[1759757592330,0.1088,4583.5,4583.2,0.4476]
[1759757592629,2.503,4584.1,4583.3,0.4476]
[1759757592795,2.18174022,4583.5,4583.3,0.4476]
[1759757593004,4.58150087,4584.0,4582.9,0.4476]
[1759757593234,2.18197687,4583.0,4582.9,0.4476]
[1759757593404,2.1818532,4583.3,4582.9,0.4476]
[1759757593405,2.18193244,4583.1,4582.9,0.4476]
[1759757593601,2.503,4583.7,4581.9,0.2301]
[1759757594136,2.503,4583.7,4582.0,2.531507]
[1759757594331,2.503,4583.7,4581.9,0.2301]
[1759757594332,4.68465532,4583.7,4582.2,2.18235781]
[1759757594493,2.18169124,4583.6,4582.4,2.18225794]
[1759757594698,2.503,4583.7,4582.5,0.4476]
[1759757594899,2.18184381,4583.3,4582.5,0.4476]
[1759757595099,2.502,4583.6,4582.5,0.4476]
[1759757595329,2.18203116,4582.9,4582.5,0.4476]
[1759757595532,2.18191812,4583.2,4582.6,0.4476]
[1759757595696,2.18180664,4583.4,4582.6,0.4476]
[1759757596024,2.18184049,4583.3,4582.6,0.4476]
[1759757596198,2.502,4583.6,4582.6,0.4476]
[1759757596601,2.18179291,4583.4,4582.6,0.4476]
[1759757596802,2.502,4583.6,4582.6,0.4476]
[1759757597041,2.502,4583.6,4580.8,0.29175884]
[1759757597329,2.502,4583.6,4580.1,0.44548183]
[1759757597330,3.0336,4583.4,4581.2,1.5526]
[1759757597533,2.4,4582.8,4581.3,0.15526]
[1759757597705,13.91939763,4582.9,4581.2,0.4476]
[1759757597706,2.502,4582.7,4581.2,0.4476]
[1759757598131,3.0336,4582.6,4579.8,0.11375794]
[1759757598332,3.0336,4582.6,4580.8,0.4476]
[1759757598520,0.6336,4582.4,4580.8,0.4476]
[1759757598723,3.0336,4582.2,4580.8,0.4476]
[1759757599030,0.4575,4582.1,4580.3,0.4476]
[1759757599402,2.4,4581.9,4580.3,0.4476]
[1759757599598,2.4,4581.2,4579.3,0.4476]
[1759757599831,2.4,4581.0,4579.3,0.4476]
[1759757600031,0.4575,4581.9,4579.4,2.41108]
[1759757600230,2.4,4581.7,4579.5,0.733468]
[1759757600402,0.6336,4581.6,4579.6,0.4476]
[1759757600604,1.0911,4581.6,4579.6,0.4476]
[1759757601831,0.6336,4581.4,4579.6,0.4476]
[1759757602362,0.6336,4581.2,4579.6,0.4476]
[1759757602558,0.6336,4581.2,4578.4,0.425]
[1759757602559,0.1088,4580.0,4579.3,0.1088]
[1759757602956,0.1088,4580.3,4579.7,0.1088]
[1759757603153,0.1088,4580.3,4579.7,0.5564]
[1759757603762,1.391,4581.1,4579.7,0.5564]
[1759757603959,0.1088,4580.6,4579.7,0.5564]
[1759757604533,13.59080138,4583.4,4580.2,0.1088]
[1759757604734,0.4575,4582.6,4580.3,0.4476]
[1759757604954,0.1088,4581.5,4580.9,0.1088]
[1759757605468,0.1088,4581.1,4580.4,0.1088]
[1759757605676,0.4575,4582.8,4580.5,0.4476]
[1759757605833,0.1088,4581.5,4580.9,0.1088]
[1759757606037,0.1088,4581.5,4581.0,0.4476]
[1759757606237,0.1088,4581.5,4581.1,0.4476]
[1759757606543,0.4575,4582.3,4580.7,0.4476]
[1759757606748,0.6336,4582.2,4580.4,0.4476]
[1759757607258,0.4575,4582.3,4580.4,0.4476]
[1759757607562,2.4,4582.7,4580.5,4.23429]
[1759757607754,2.503,4582.8,4580.6,3.315789]
[1759757607954,2.503,4582.8,4580.7,8.397051]
[1759757608152,2.503,4582.8,4580.8,0.4476]
[1759757608449,3.0336,4583.0,4580.8,0.4476]
[1759757608651,0.4575,4583.5,4580.9,4.951108]
[1759757608862,0.4575,4583.5,4581.0,0.9874708]
[1759757609063,0.4575,4583.5,4581.1,0.4476]
[1759757609265,0.6336,4583.4,4581.2,3.963176]
[1759757609473,0.6336,4583.4,4581.3,0.4476]
[1759757610355,0.6336,4583.2,4581.3,0.4476]
[1759757610557,0.4575,4583.1,4581.3,0.4476]
[1759757610878,2.8575,4583.7,4581.3,0.4476]
[1759757611083,2.4,4583.7,4581.4,4.88275]
[1759757611287,2.503,4584.2,4581.5,2.933035]
[1759757611455,2.503,4584.2,4581.6,5.585342]
[1759757611655,2.4,4584.1,4581.7,0.4476]
[1759757611986,2.8567,4584.1,4581.7,2.9506]
[1759757612281,2.8567,4584.1,4581.8,0.7959635]
[1759757612485,0.6336,4583.9,4581.8,0.7959635]
[1759757612657,0.6336,4583.7,4581.3,0.4476]
[1759757612857,0.6336,4583.5,4581.4,3.60289]
[1759757613088,0.6336,4583.5,4581.5,4.07869]
[1759757613291,0.6336,4583.5,4581.6,0.4614]
[1759757614575,3.4641,4583.5,4581.5,0.4614]
[1759757614960,0.6336,4583.4,4580.5,0.001]
[1759757615161,0.6336,4583.2,4580.5,0.001]
[1759757615553,0.6336,4583.0,4580.5,0.001]
[1759757615953,0.6336,4582.8,4580.5,0.001]
[1759757616356,0.6336,4582.6,4580.5,0.001]
[1759757616589,0.1088,4581.0,4580.5,0.001]
[1759757616891,0.1088,4581.3,4580.7,0.1088]
[1759757617662,0.1088,4581.6,4580.8,0.46]
[1759757617875,0.1088,4581.6,4581.0,0.1088]
[1759757618059,0.1088,4581.6,4581.1,0.46]
[1759757618388,0.1088,4581.6,4581.0,0.1088]
[1759757618764,0.4474,4583.5,4581.0,0.46]
[1759757618970,0.1088,4582.2,4581.5,0.1088]
[1759757619172,0.1088,4582.4,4581.6,0.46]
[1759757619494,0.46,4585.6,4581.6,0.46]
[1759757619495,0.4474,4584.0,4582.0,0.1088]
[1759757619788,0.1088,4583.4,4582.8,0.1088]
[1759757620985,0.1088,4583.7,4583.0,0.1088]
[1759757621202,0.1088,4583.9,4583.1,9.374091]
[1759757621501,13.59080138,4586.7,4583.3,0.1088]
[1759757621502,0.1088,4584.1,4583.3,0.1088]
[1759757621674,0.4474,4584.4,4583.0,0.1088]
[1759757621675,0.1088,4583.7,4583.0,0.1088]
[1759757622477,0.1088,4583.7,4582.9,0.46]
[1759757622478,0.1088,4584.1,4583.4,0.1088]
[1759757622880,0.451,4585.5,4583.5,0.46]
[1759757623087,0.1088,4584.4,4583.8,0.1088]
[1759757623970,0.1088,4584.4,4583.8,0.5688]
[1759757624173,0.1088,4584.9,4584.2,0.1088]
[1759757624687,0.1088,4584.9,4584.3,0.46]
[1759757624884,0.1088,4585.3,4584.6,0.1088]
[1759757625203,0.1088,4585.6,4584.7,0.46]
[1759757625506,0.1088,4585.6,4584.9,0.1088]
[1759757625995,0.4474,4585.6,4584.5,0.1088]
[1759757626298,0.1088,4585.2,4584.5,0.1088]
[1759757627202,0.4474,4586.7,4584.6,0.46]
[1759757627391,0.4474,4586.7,4584.9,0.1088]
[1759757627392,0.1088,4585.6,4584.9,0.1088]
[1759757627705,0.1088,4586.0,4585.4,0.1088]
[1759757627997,0.1088,4585.6,4584.5,0.1088]
[1759757628221,0.1088,4585.2,4584.5,0.1088]
[1759757628704,0.6356,4585.4,4583.8,2.4]
[1759757628869,0.1088,4584.8,4584.2,0.1088]
[1759757630600,0.6336,4585.0,4583.3,0.46]
[1759757630803,0.1088,4584.5,4583.8,0.1088]
[1759757634786,0.1088,4584.5,4583.8,0.5688]
[1759757634989,0.002,4585.4,4583.8,0.46]
[1759757635212,0.1088,4585.2,4584.4,0.1088]
[1759757636399,0.108,4585.2,4584.4,0.1088]
[1759757636604,0.108,4585.2,4584.4,0.5688]
[1759757636901,0.108,4585.2,4584.4,0.1088]
[1759757637696,0.108,4585.2,4584.5,0.46]
[1759757638308,0.108,4585.2,4584.4,0.1088]
[1759757638506,0.108,4585.2,4584.5,0.46]
[1759757638725,0.002,4585.4,4584.6,9.819179]
[1759757639024,0.002,4585.4,4584.6,15.468565]
[1759757639222,0.002,4585.4,4584.7,14.81402]
[1759757639427,0.002,4585.4,4584.9,2.4]
[1759757639636,0.002,4585.4,4585.1,2.4]
[1759757639934,0.002,4585.4,4585.3,2.4]
[1759757640135,0.002,4585.4,4585.3,7.444048]
[1759757640339,0.002,4585.4,4585.3,7.904048]
[1759757640531,0.002,4585.4,4585.3,9.98709013]
[1759757640751,0.002,4585.9,4585.3,11.32768689]
[1759757641033,0.4494,4590.3,4586.0,3.0336]
[1759757641234,0.20241323,4590.2,4586.7,0.6336]
[1759757641547,0.002,4590.3,4586.9,3.0336]
[1759757641838,0.002,4590.3,4586.8,32.19001556]
[1759757641839,0.002,4590.3,4587.9,0.6336]
[1759757642042,0.002,4590.3,4588.1,3.0336]
[1759757642254,0.002,4590.3,4588.3,2.4]
[1759757642406,0.002,4590.3,4588.1,0.46]
[1759757642610,0.002,4590.3,4588.2,2.408621]
[1759757642806,0.002,4590.3,4588.3,0.2868621]
[1759757642807,0.4474,4590.2,4588.3,0.2868621]
[1759757643007,0.6336,4590.1,4587.8,2.482]
[1759757643212,0.6336,4589.9,4587.8,2.482]
[1759757643429,0.6336,4589.7,4586.7,0.4491]
[1759757643613,0.6336,4589.5,4586.8,4.8661]
[1759757643942,0.6336,4589.3,4586.8,2.503]
[1759757644144,0.6336,4589.1,4586.9,0.2503]
[1759757644313,0.6336,4588.9,4586.9,0.2503]
[1759757644513,0.6336,4588.7,4586.2,0.4491]
[1759757644726,2.4,4589.2,4586.3,2.752105]
[1759757644727,0.6336,4588.5,4586.3,2.752105]
[1759757644924,0.6336,4588.5,4585.6,0.4491]
[1759757644925,0.4682,4588.4,4586.4,3.434698]
[1759757645121,0.4682,4588.4,4585.8,2.4]
[1759757645342,0.4682,4588.4,4586.3,2.502]
[1759757645545,0.4682,4588.4,4586.4,0.4491]
[1759757645831,0.6336,4588.7,4586.4,0.4491]
[1759757646029,0.6336,4589.5,4586.4,0.4491]
[1759757646224,0.6336,4589.3,4586.4,0.4491]
[1759757646424,0.6336,4589.1,4586.4,0.4491]
[1759757646718,0.6336,4588.9,4586.5,0.388]
[1759757647053,0.6336,4588.7,4586.5,0.388]
[1759757647421,0.6336,4588.7,4586.6,0.4491]
[1759757647620,2.87623666,4590.6,4586.6,0.4491]
[1759757647621,0.4682,4589.2,4586.7,5.038393]
[1759757647825,0.4682,4589.6,4586.8,3.4366493]
[1759757648025,0.4682,4589.6,4587.0,2.4]
[1759757648242,0.4682,4589.6,4587.1,9.770892]
[1759757648441,0.4682,4589.6,4587.2,6.915187]
[1759757648643,0.002,4589.9,4587.4,2.4]
[1759757648843,0.1088,4589.2,4588.5,0.1088]
[1759757649022,0.1088,4589.4,4588.8,0.1088]
[1759757649225,0.002,4589.9,4588.8,0.1088]
[1759757649466,0.002,4589.9,4588.9,0.4491]
[1759757649624,0.002,4589.9,4589.5,0.1088]
[1759757650457,0.002,4589.9,4588.9,0.4491]
[1759757650641,0.1088,4589.8,4589.2,0.1088]
[1759757650841,0.1088,4589.5,4588.9,0.1088]
[1759757651555,0.1088,4589.7,4589.1,0.1088]
[1759757651853,0.002,4589.9,4589.2,0.4491]
[1759757652053,0.002,4589.9,4589.6,0.1088]
[1759757652243,0.002,4589.9,4589.6,0.4147508]
[1759757652457,0.002,4589.9,4589.8,0.1088]
[1759757653828,0.002,4589.9,4589.8,0.5579]
[1759757654033,0.002,4589.9,4589.8,10.711803]
[1759757654342,0.002,4589.9,4589.8,4.853544]
[1759757654539,0.002,4589.9,4589.8,1.32394948]
[1759757654853,0.002,4589.9,4589.8,2.6088]
[1759757655562,0.002,4589.9,4589.8,3.0579]
[1759757656063,0.002,4589.9,4589.8,7.382488]
[1759757656268,0.002,4589.9,4589.8,13.66214]
[1759757656432,0.002,4589.9,4589.8,14.62814]
[1759757656632,0.002,4589.9,4589.8,16.090954]
[1759757656857,0.002,4589.9,4589.8,34.520714]
[1759757657061,0.002,4589.9,4589.8,36.920714]
[1759757657749,0.002,4589.9,4589.8,34.420714]
[1759757657965,0.002,4589.9,4589.8,21.02698]
[1759757658461,0.002,4589.9,4589.8,20.59598]
[1759757658960,0.002,4589.9,4589.8,20.19598]
[1759757659758,0.002,4590.3,4589.9,3.0336]
[1759757659960,0.002,4590.3,4590.2,0.7424]
[1759757660144,0.002,4590.3,4590.2,33.1424]
[1759757660350,0.002,4590.3,4590.2,32.9579]
[1759757660665,0.002,4590.3,4590.2,33.5915]
[1759757660961,0.0012,4590.3,4590.2,33.5915]
[1759757661165,0.002,4590.8,4590.3,3.3443674]
[1759757661334,0.002,4590.8,4590.5,3.0336]
[1759757661540,0.002,4590.8,4590.7,0.6336]
[1759757661756,0.002,4590.8,4590.7,5.110557]
[1759757661956,0.002,4590.8,4590.3,0.4491]
[1759757662167,0.002,4590.8,4590.4,4.83143518]
[1759757662363,0.002,4590.8,4589.2,2.4]
[1759757662364,0.002,4590.8,4590.5,2.498]
[1759757662540,0.002,4590.8,4590.6,2.498]
[1759757662744,0.002,4590.8,4589.1,0.4491]
[1759757662941,0.002,4590.8,4589.6,0.4491]
[1759757663142,0.002,4590.8,4589.7,5.583697]
[1759757663358,0.002,4590.8,4589.0,0.44179499]
[1759757663359,0.002,4590.8,4589.8,0.6032797]
[1759757663562,0.4682,4590.7,4589.9,0.921]
[1759757663769,0.4682,4590.7,4590.0,1.224]
[1759757663974,0.4682,4590.7,4590.1,1.511]
[1759757664461,0.002,4590.8,4588.4,0.4491]
[1759757664660,0.4682,4590.6,4588.6,2.4]
[1759757664971,0.4682,4590.5,4588.7,1.067332]
[1759757665171,0.4682,4590.4,4588.8,2.497]
[1759757665572,0.4682,4590.4,4588.4,0.4491]
[1759757665874,0.4682,4590.4,4588.9,2.497]
[1759757666847,0.002,4590.8,4588.9,2.497]
[1759757667076,0.6336,4590.2,4587.8,0.4491]
[1759757667376,0.4682,4590.1,4588.0,2.4]
[1759757667673,0.002,4590.8,4587.9,8.51721]
[1759757667674,0.4682,4590.5,4588.8,0.001]
[1759757667979,0.002,4590.8,4588.9,12.236681]
[1759757668272,0.002,4590.8,4589.0,9.116461]
[1759757668477,0.20376187,4590.8,4589.0,9.116461]
[1759757668852,0.002,4590.8,4589.1,0.4491]
[1759757669075,0.002,4590.8,4589.2,1.2062561]
[1759757669273,0.20420625,4590.8,4589.1,0.4491]
[1759757669473,0.20420625,4590.8,4589.3,2.496]
[1759757670184,1.1018,4590.7,4589.0,2.496]
[1759757670372,0.6336,4590.5,4589.0,2.496]
[1759757670694,0.67040625,4590.4,4589.0,2.496]
[1759757671005,0.6336,4590.2,4588.8,0.001]
[1759757671156,0.1088,4589.6,4588.9,0.1088]
[1759757671710,0.4682,4589.6,4588.8,0.001]
[1759757671983,0.1088,4589.0,4588.8,0.001]
[1759757672789,0.4682,4589.6,4588.8,0.001]
[1759757672790,0.1088,4589.2,4588.8,0.001]
[1759757673159,0.4745,4591.4,4588.9,4.58943]
[1759757673472,0.20442325,4591.3,4589.0,15.736383]
[1759757673663,0.20442325,4591.3,4589.1,8.740716]
[1759757673859,0.4765,4590.8,4589.2,2.496]
[1759757674170,0.20241657,4590.7,4589.2,2.496]
[1759757674588,0.20241657,4590.7,4589.2,3.0835453]
[1759757674957,0.20241657,4590.7,4589.2,0.5875453]
[1759757675155,0.20241657,4590.7,4589.3,2.496]
[1759757675753,1.1056,4590.6,4588.8,0.001]
[1759757675987,0.6336,4590.4,4588.9,0.345]
[1759757676159,0.6336,4590.2,4588.9,0.345]
[1759757676362,0.6336,4590.0,4588.9,0.345]
[1759757676559,0.6336,4589.8,4588.8,0.001]
[1759757676758,0.6336,4589.6,4588.8,0.001]
[1759757676959,0.2028221,4589.5,4588.8,0.001]
[1759757678164,0.472,4590.7,4588.8,0.001]
[1759757678370,0.2030299,4590.6,4588.8,0.13821]
[1759757678571,0.2030299,4590.5,4588.8,0.13821]
[1759757678775,0.2030299,4590.4,4588.8,0.13821]
[1759757679063,0.6336,4590.2,4588.8,0.001]
[1759757679263,0.6336,4590.0,4588.8,0.001]
[1759757679492,0.472,4590.3,4588.8,0.001]
[1759757679493,0.6336,4589.8,4588.8,0.001]
[1759757679673,0.6336,4590.2,4588.8,0.001]
[1759757679861,0.20303022,4590.1,4588.8,0.001]
[1759757680068,0.20303022,4590.0,4588.8,0.001]
[1759757680288,0.472,4590.3,4588.8,0.001]
[1759757680289,0.20303022,4589.9,4588.8,0.001]
[1759757680493,0.20303022,4589.8,4588.8,0.001]
[1759757680810,0.20303022,4589.7,4588.8,0.001]
[1759757681090,0.6336,4590.2,4588.8,0.001]
[1759757681259,0.6336,4590.0,4588.8,0.001]
[1759757681466,0.6336,4589.8,4588.8,0.001]
[1759757681683,0.2030226,4589.9,4588.8,0.001]
[1759757681684,0.6336,4589.6,4588.8,0.001]
[1759757681885,0.20301542,4589.5,4588.8,0.001]
[1759757682086,0.67501542,4589.5,4588.8,0.001]
[1759757682394,0.6336,4589.3,4588.8,0.001]
[1759757682591,0.6336,4589.1,4588.8,0.001]
[1759757682892,0.6336,4588.9,4588.8,0.001]
[1759757683091,0.94541542,4588.9,4588.8,0.001]
[1759757683396,1.41741542,4588.9,4588.8,0.001]
[1759757684896,0.78381542,4588.9,4588.8,0.001]
[1759757685205,0.31181542,4588.9,4588.8,0.001]
[1759757685407,0.31101542,4588.9,4588.8,0.001]
[1759757686317,0.5808,4588.9,4588.8,0.001]
[1759757686500,1.2144,4588.9,4588.8,0.001]
[1759757687117,0.7424,4588.9,4588.8,0.001]
[1759757687631,0.1088,4588.9,4588.8,0.001]
[1759757687788,0.5808,4588.9,4588.8,0.001]
[1759757688426,0.1088,4588.9,4588.8,0.001]
[1759757689799,0.1088,4588.9,4588.8,0.4441]
[1759757690129,2.493,4590.2,4588.8,0.4441]
[1759757690313,0.1088,4589.6,4589.0,0.1088]
[1759757690845,0.002,4590.9,4589.1,0.4431]
[1759757691021,0.002,4590.9,4589.3,2.4]
[1759757691223,0.002,4590.9,4589.5,2.4]
[1759757691527,0.002,4590.9,4589.7,2.4]
[1759757691718,0.002,4590.9,4589.8,10.894197]
[1759757691895,0.002,4590.9,4589.8,2.493]
[1759757692107,0.002,4590.9,4589.9,3.416213]
[1759757692308,0.002,4590.9,4590.0,0.5909213]
[1759757692638,0.002,4590.9,4590.0,0.4431]
[1759757692808,0.002,4590.9,4589.4,0.4431]
[1759757694238,0.002,4590.9,4589.5,2.724]
[1759757694534,0.002,4590.9,4589.4,0.4431]
[1759757694535,0.6356,4590.8,4588.9,0.4431]
[1759757694839,0.002,4590.8,4588.9,0.4431]
[1759757695632,0.002,4590.8,4589.0,1.804]
[1759757695934,0.474,4590.4,4589.1,0.22481]
[1759757696129,0.474,4590.4,4588.8,0.001]
[1759757696652,0.6336,4590.3,4588.8,0.001]
[1759757696948,0.474,4590.4,4588.8,0.001]
[1759757697356,0.002,4590.4,4588.8,0.001]
[1759757697652,0.002,4590.4,4588.9,0.4431]
[1759757700326,0.002,4590.4,4589.0,6.508376]
[1759757700632,0.002,4590.4,4589.9,0.1088]
[1759757700808,0.002,4590.4,4589.9,2.5998]
[1759757701012,0.002,4590.4,4590.0,0.4431]
[1759757701211,0.002,4590.4,4590.2,0.1088]
[1759757701412,0.1088,4590.3,4589.7,0.1088]
[1759757701650,0.1088,4590.3,4589.5,0.1088]
[1759757702011,0.1088,4590.3,4589.6,0.4431]
[1759757702234,0.002,4590.4,4590.0,0.1088]
[1759757702421,0.002,4590.4,4589.6,0.4431]
[1759757702422,0.002,4590.4,4590.3,0.1088]
[1759757702942,0.002,4590.4,4589.7,0.4696]
[1759757703113,0.002,4590.4,4590.0,0.1088]
[1759757703315,0.002,4590.4,4589.7,0.4696]